bitfinex-derivatives/quotes_ETHF0:USTF0_20240910
["timestamp","ask_amount","ask_price","bid_price","bid_amount"]
[1725998753638,1.05032,2380.1,2379.7,0.42019]
[1725998753835,1.05032,2380.1,2379.7,0.81029]
[1725998754337,0.42017,2379.9,2379.7,0.81028]
[1725998756333,0.42018,2379.8,2379.7,0.81028]
[1725998756837,0.42018,2379.8,2379.7,5.01268]
[1725998758436,0.42017,2379.9,2379.7,5.01268]
[1725998758638,0.42018,2379.8,2379.7,0.81028]
[1725998759042,0.42018,2379.8,2379.7,5.01268]
[1725998760334,1.05032,2380.1,2379.7,4.5925]
[1725998760530,1.05032,2380.1,2379.7,0.81028]
[1725998760727,0.42018,2379.8,2379.7,0.81028]
[1725998761132,1.05032,2380.1,2379.8,0.42017]
[1725998761133,0.42017,2379.9,2379.8,0.42017]
[1725998761333,0.42015,2380.0,2379.8,3.28]
[1725998761634,0.42015,2380.0,2379.9,0.42016]
[1725998761947,4.102,2380.4,2379.9,4.2016]
[1725998762237,0.42011,2380.2,2380.1,0.42012]
[1725998762438,1.05025,2380.3,2379.8,0.42017]
[1725998762643,0.42015,2380.0,2379.9,0.42016]
[1725998762832,1.05025,2380.3,2379.9,0.42016]
[1725998763237,0.42013,2380.1,2379.9,0.42015]
[1725998763437,0.42013,2380.1,2380.0,0.42014]
[1725998763741,0.42013,2380.1,2379.9,3.70015]
[1725998764043,1.05025,2380.3,2379.9,3.28]
[1725998764231,0.42014,2380.1,2379.9,3.70015]
[1725998764435,1.08482902,2380.7,2379.9,3.70015]
[1725998764436,5.73844906,2381.3,2380.2,3.28]
[1725998764636,6.818,2381.4,2380.0,25.31338079]
[1725998764637,0.3803,2381.4,2381.3,0.41991]
[1725998764843,0.4006,2381.7,2381.5,0.41987]
[1725998765137,6.78787906,2382.2,2381.7,0.41984]
[1725998765138,0.3803,2381.9,2381.7,0.41984]
[1725998765332,0.3803,2381.9,2381.6,3.28]
[1725998765536,0.3803,2381.9,2381.8,0.41982]
[1725998765841,0.3803,2381.9,2381.8,3.69982]
[1725998766239,0.3803,2381.9,2381.8,4.44982]
[1725998766440,5.73844906,2382.6,2381.8,4.44982]
[1725998766441,4.5217,2382.6,2382.0,0.41978]
[1725998766639,1.09444667,2382.8,2381.4,5.07972]
[1725998766640,0.3943,2382.4,2382.1,4.03]
[1725998766943,0.3943,2382.4,2382.2,0.41974]
[1725998767130,0.3943,2382.4,2382.1,4.03]
[1725998767131,0.3943,2382.4,2382.3,0.41974]
[1725998767336,0.3994,2382.8,2382.3,0.41972]
[1725998767530,0.3994,2382.8,2382.1,4.03]
[1725998767734,0.3994,2382.8,2382.3,0.41973]
[1725998767934,0.3994,2382.8,2382.1,4.03]
[1725998768138,0.41967,2382.7,2382.1,4.03]
[1725998768336,0.3994,2382.8,2382.1,4.03]
[1725998768548,1.04917,2382.7,2381.8,4.44981]
[1725998768838,0.3994,2382.8,2382.0,0.41979]
[1725998769047,0.41968,2382.6,2382.0,0.41978]
[1725998769549,0.41968,2382.7,2382.1,0.41976]
[1725998769750,0.3994,2382.8,2382.2,4.03]
[1725998769937,0.3994,2382.8,2382.3,0.41972]
[1725998770239,0.3943,2382.9,2382.5,0.4197]
[1725998770433,0.3943,2382.9,2382.8,0.41965]
[1725998770636,0.3943,2382.9,2382.7,0.41966]
[1725998771133,0.3943,2382.9,2382.5,40.8]
[1725998771440,0.3943,2382.9,2382.5,41.2197]
[1725998771641,0.3943,2382.9,2382.5,40.8]
[1725998771846,0.3943,2382.9,2382.6,0.41968]
[1725998772034,0.3943,2382.9,2382.5,40.8]
[1725998772445,0.3943,2382.9,2382.6,0.41968]
[1725998774258,0.41966,2382.8,2382.5,40.8]
[1725998774450,0.81394,2382.9,2382.5,40.8]
[1725998774636,0.3943,2382.9,2382.5,41.21969]
[1725998774845,0.3943,2382.9,2382.6,0.41968]
[1725998775345,0.3943,2382.9,2382.7,0.41966]
[1725998775650,0.41957,2383.3,2382.8,0.41965]
[1725998775946,0.82267,2383.3,2382.8,4.44964]
[1725998776151,0.82267,2383.3,2382.9,0.41963]
[1725998776350,0.82266,2383.3,2382.9,0.41963]
[1725998776649,0.4031,2383.3,2383.0,4.44961]
[1725998777437,0.4031,2383.3,2383.1,0.41959]
[1725998777840,0.4031,2383.3,2383.0,4.03]
[1725998778049,0.4031,2383.3,2383.1,0.41959]
[1725998778252,0.4031,2383.3,2383.0,4.44961]
[1725998778550,0.82266,2383.3,2383.0,4.44961]
[1725998778752,0.4031,2383.3,2383.0,4.03]
[1725998778948,0.4031,2383.3,2383.0,4.44961]
[1725998779141,0.4031,2383.3,2383.0,4.03]
[1725998779447,0.4031,2383.3,2383.2,0.41958]
[1725998779647,0.4031,2383.3,2383.1,0.41958]
[1725998779849,0.41953,2383.5,2383.0,4.03]
[1725998780047,0.41953,2383.5,2383.1,0.41959]
[1725998780239,0.41953,2383.5,2383.1,0.41958]
[1725998780441,0.3803,2383.7,2382.8,0.3978]
[1725998780744,0.7998,2383.7,2383.3,4.44955]
[1725998780949,0.3803,2383.7,2383.1,0.4196]
[1725998781148,0.41954,2383.4,2383.1,0.4196]
[1725998781857,0.41956,2383.4,2383.0,4.03]
[1725998782050,0.41953,2383.5,2383.2,0.41957]
[1725998782457,0.41954,2383.4,2383.2,0.41957]
[1725998782653,0.3803,2383.7,2383.1,0.41958]
[1725998782955,0.41954,2383.4,2383.2,0.41957]
[1725998783254,0.41958,2383.2,2383.1,0.0454]
[1725998784749,1.0488,2383.6,2383.1,0.0454]
[1725998784953,0.41955,2383.4,2383.2,0.41957]
[1725998785852,1.42905,2383.7,2383.3,0.41956]
[1725998786054,0.41953,2383.5,2383.3,0.41956]
[1725998786264,0.41953,2383.5,2383.4,3.27]
[1725998786960,4.1952,2383.5,2383.4,3.68954]
[1725998787258,4.102,2383.9,2383.4,7.4652]
[1725998787459,1.04849,2384.3,2383.8,3.68947]
[1725998787460,0.3871,2384.2,2383.8,3.68947]
[1725998787659,0.80652,2384.2,2384.1,3.27]
[1725998787961,5.00092,2384.2,2384.1,3.27]
[1725998789159,0.80652,2384.2,2384.1,3.27]
[1725998790557,0.3871,2384.2,2384.1,3.27]
[1725998790758,1.04823,2384.9,2384.1,3.27]
[1725998791065,1.04823,2384.9,2384.4,0.41936]
[1725998791066,0.78482,2384.7,2384.4,0.41936]
[1725998791360,0.3655,2384.7,2384.0,9.1225095]
[1725998791563,0.41936,2384.5,2384.4,3.27]
[1725998792061,0.41936,2384.5,2384.2,4.03]
[1725998792266,0.41934,2384.6,2384.2,4.44939]
[1725998792467,0.3655,2384.7,2384.2,4.44939]
[1725998792770,0.41933,2384.6,2384.2,4.44939]
[1725998793063,0.41937,2384.4,2384.2,4.03]
[1725998793359,4.102,2385.1,2384.2,4.03]
[1725998793360,5.15016,2385.1,2384.2,4.03]
[1725998793564,0.41933,2384.7,2384.5,4.03]
[1725998793762,0.41933,2384.6,2384.5,4.03]
[1725998794059,0.41935,2384.5,2384.2,4.44939]
[1725998794962,0.41938,2384.4,2384.2,4.03]
[1725998795155,0.3744,2384.3,2384.2,4.03]
[1725998795457,0.3744,2384.3,2384.2,4.4494]
[1725998795659,0.3744,2384.3,2384.2,4.03]
[1725998795863,0.41943,2384.1,2383.9,44.83]
[1725998796054,0.41944,2384.0,2383.9,40.8]
[1725998796257,4.1944,2384.0,2383.2,0.3645]
[1725998796454,1.04856,2384.1,2383.5,0.41951]
[1725998796667,1.04856,2384.1,2383.6,40.8]
[1725998797064,0.41949,2383.8,2383.6,41.2195]
[1725998798160,1.04856,2384.1,2383.6,40.8]
[1725998798367,4.4854,2384.2,2383.6,40.8]
[1725998798368,0.41949,2383.7,2383.6,40.8]
[1725998798861,0.41948,2383.8,2383.6,41.21951]
[1725998799568,1.0486,2384.0,2383.6,41.21951]
[1725998799763,5.53393,2384.2,2383.7,0.41947]
[1725998799960,0.3834,2384.2,2383.4,4.03]
[1725998800160,0.41944,2384.0,2383.8,0.41946]
[1725998800368,0.41947,2383.8,2383.7,0.3818]
[1725998800664,0.41949,2383.8,2383.5,40.8]
[1725998800863,0.41949,2383.8,2383.6,0.4195]
[1725998801067,1.04854,2384.2,2383.5,40.8]
[1725998801266,0.41943,2384.1,2383.9,0.41945]
[1725998802161,0.41944,2384.0,2383.8,1.16576]
[1725998802470,0.41943,2384.1,2383.9,0.41945]
[1725998802765,0.41944,2384.0,2383.9,0.41945]
[1725998803659,0.41943,2384.1,2383.9,4.1944]
[1725998803858,0.41943,2384.1,2383.9,0.41944]
[1725998804275,0.41944,2384.0,2383.9,0.41944]
[1725998804871,0.41944,2384.0,2383.9,4.61384]
[1725998805466,0.41944,2384.0,2383.9,4.1944]
[1725998805666,1.04857,2384.1,2383.8,1.16577]
[1725998805865,0.41945,2383.9,2383.7,0.41948]
[1725998806364,0.41945,2384.0,2383.6,0.21430669]
[1725998806572,1.04857,2384.1,2383.8,0.41946]
[1725998806772,0.41945,2383.9,2383.8,0.41946]
[1725998807272,0.4195,2383.7,2383.5,45.2019]
[1725998807468,0.41951,2383.6,2383.5,41.1719]
[1725998807668,1.04889,2383.4,2382.5,1.26023]
[1725998807862,0.41961,2383.1,2382.9,0.41962]
[1725998808067,0.41961,2383.0,2382.8,0.41964]
[1725998808267,0.41961,2383.0,2382.8,0.41965]
[1725998808268,0.41962,2383.0,2382.8,0.41965]
[1725998808674,0.3811,2383.2,2382.9,40.8]
[1725998808867,0.80069,2383.2,2383.0,0.41961]
[1725998809069,0.80069,2383.2,2383.0,0.4196]
[1725998809264,0.80068,2383.2,2383.0,0.4196]
[1725998809582,0.80069,2383.2,2382.9,41.21962]
[1725998810078,0.4196,2383.1,2382.9,41.21962]
[1725998810368,0.41961,2383.0,2382.9,40.8]
[1725998811777,0.41961,2383.1,2382.9,41.21963]
[1725998812879,0.41961,2383.0,2382.9,40.8]
[1725998813080,0.41961,2383.0,2382.9,41.39464862]
[1725998813875,0.41961,2383.0,2382.9,40.8]
[1725998814077,1.46865,2383.0,2382.9,40.8]
[1725998814478,0.41961,2383.0,2382.9,40.8]
[1725998815378,0.41961,2383.1,2382.9,41.21962]
[1725998815870,0.3811,2383.2,2382.9,41.21962]
[1725998816066,0.41961,2383.0,2382.9,40.8]
[1725998816266,0.41961,2383.0,2382.9,41.21963]
[1725998816480,0.41961,2383.1,2382.9,40.8]
[1725998816683,0.41961,2383.1,2382.9,41.21962]
[1725998816880,0.41961,2383.1,2383.0,0.41961]
[1725998817179,0.41961,2383.0,2382.9,40.8]
[1725998817376,1.46865,2383.0,2382.9,40.8]
[1725998818484,1.46865,2383.0,2382.6,0.82247]
[1725998818485,0.4197,2382.5,2382.3,4.44972]
[1725998818979,0.4197,2382.5,2382.4,41.21972]
[1725998819574,0.4197,2382.5,2382.4,40.8]
[1725998819779,0.41975,2382.2,2382.1,19.78752]
[1725998820482,0.3751,2382.4,2382.3,0.41974]
[1725998820483,0.79483,2382.4,2382.3,0.41974]
[1725998820678,1.09444667,2382.8,2382.7,0.41967]
[1725998820881,1.04908,2382.9,2382.6,4.44967]
[1725998821183,1.04902,2383.1,2382.6,4.03]
[1725998821376,1.46954667,2383.2,2382.6,4.03]
[1725998821578,0.41962,2383.0,2382.8,0.41964]
[1725998821782,0.41965,2382.8,2382.7,0.41965]
[1725998821986,0.41964,2382.9,2382.6,4.03]
[1725998822180,0.41964,2382.9,2382.7,0.41965]
[1725998822379,0.41965,2382.8,2382.6,4.44967]
[1725998822680,1.46954667,2383.2,2382.6,4.03]
[1725998822880,2.51851667,2383.2,2382.8,0.41964]
[1725998823080,2.51851667,2383.2,2382.6,5.0792]
[1725998823081,1.46954667,2383.2,2382.6,5.0792]
[1725998823287,0.4196,2383.1,2382.9,4.03]
[1725998823585,2.14333667,2383.4,2383.1,0.41959]
[1725998823781,1.04889,2383.4,2383.1,0.41959]
[1725998823980,0.4196,2383.1,2383.0,0.8125]
[1725998824677,0.4196,2383.1,2382.9,4.03]
[1725998824678,1.09444667,2383.5,2382.4,1.44104968]
[1725998824883,0.41968,2382.6,2382.5,0.3929]
[1725998825191,0.41974,2382.3,2382.2,4.03]
[1725998825379,0.41975,2382.2,2382.1,19.36775]
[1725998825585,0.41975,2382.2,2382.1,60.16775]
[1725998826281,5.66674,2382.2,2382.1,19.36775]
[1725998826481,6.05654,2382.2,2382.1,19.36775]
[1725998827585,5.00715,2382.2,2382.1,19.36775]
[1725998828385,2.14366667,2382.6,2382.1,19.36775]
[1725998828586,0.3821,2382.8,2382.2,4.03]
[1725998828886,0.4197,2382.6,2382.3,1.18563]
[1725998829080,0.4197,2382.5,2382.3,0.7659]
[1725998829487,0.3821,2382.8,2382.3,0.3739]
[1725998829683,0.3821,2382.8,2382.1,19.36775]
[1725998829684,0.41975,2382.2,2382.1,19.36775]
[1725998829992,6.62769667,2382.8,2382.1,19.36775]
[1725998830203,0.3821,2382.8,2382.1,19.36775]
[1725998830492,0.41971,2382.5,2382.2,0.41975]
[1725998832590,0.41969,2382.6,2382.1,19.36775]
[1725998832780,0.41968,2382.7,2382.2,4.03]
[1725998832985,0.41968,2382.7,2382.3,0.3815]
[1725998833185,0.41969,2382.6,2382.4,0.41971]
[1725998833491,0.3902,2382.9,2382.5,0.368]
[1725998833688,0.41966,2382.8,2382.5,0.78769]
[1725998833897,0.41966,2382.8,2382.5,0.7877]
[1725998834197,0.41968,2382.7,2382.5,0.368]
[1725998834596,0.41968,2382.6,2382.5,0.368]
[1725998834892,0.41967,2382.7,2382.5,0.78769]
[1725998835098,0.41966,2382.8,2382.5,0.78769]
[1725998835391,0.3902,2382.9,2382.5,0.368]
[1725998835593,0.41967,2382.7,2382.5,0.7877]
[1725998835789,4.102,2383.1,2382.5,4.398]
[1725998836089,0.81149,2383.2,2382.9,0.41963]
[1725998836295,0.81149,2383.2,2382.8,4.03]
[1725998836296,0.41962,2383.0,2382.8,4.03]
[1725998836490,0.41962,2383.0,2382.8,4.44965]
[1725998836694,0.41961,2383.1,2382.8,4.44965]
[1725998836892,0.41961,2383.0,2382.9,40.8]
[1725998837291,0.41961,2383.1,2382.9,40.8]
[1725998837492,0.81149,2383.2,2383.0,0.41961]
[1725998837688,0.81149,2383.2,2383.0,0.3717]
[1725998837895,0.4196,2383.1,2383.0,0.3717]
[1725998838590,0.41961,2383.0,2382.9,40.8]
[1725998840390,5.66545,2383.0,2382.9,40.8]
[1725998841393,0.41961,2383.0,2382.9,40.8]
[1725998843595,1.46865,2383.0,2382.9,40.8]
[1725998843895,0.4197,2382.5,2382.4,0.7832]
[1725998844101,0.3866,2382.9,2382.1,19.36775]
[1725998844401,0.41975,2382.2,2382.1,19.36775]
[1725998844695,0.41975,2382.2,2382.1,60.16775]
[1725998846098,0.41975,2382.2,2382.1,60.58752]
[1725998846596,0.41975,2382.2,2382.1,60.16775]
[1725998847197,1.46914,2382.2,2382.1,60.16775]
[1725998847596,0.41975,2382.2,2382.1,60.16775]
[1725998851305,1.46914,2382.2,2382.1,60.16775]
[1725998852310,0.41975,2382.2,2382.1,60.16775]
[1725998854604,0.41975,2382.2,2382.1,60.54315]
[1725998855508,0.41975,2382.2,2382.1,60.96292]
[1725998856213,0.41975,2382.3,2382.2,0.41975]
[1725998856503,0.41975,2382.2,2382.1,60.96291]
[1725998856705,0.41974,2382.3,2382.2,0.41975]
[1725998857010,0.41975,2382.2,2382.1,60.54315]
[1725998857308,0.41975,2382.2,2382.1,65.33743065]
[1725998857609,1.46914,2382.2,2382.1,19.96443065]
[1725998857808,2.51853,2382.2,2382.1,19.96443065]
[1725998858107,13.51393,2382.2,2382.1,18.48290163]
[1725998858502,13.51393,2382.2,2382.1,17.88622098]
[1725998858909,15.15992807,2382.2,2382.1,17.88622098]
[1725998859406,9.15992807,2382.2,2382.1,17.88622098]
[1725998859610,8.11053807,2382.2,2382.1,17.88622098]
[1725998859804,6.46454,2382.2,2382.1,17.88622098]
[1725998860107,1.64599807,2382.3,2382.1,17.88622098]
[1725998860312,4.49862063,2382.8,2382.2,8.6075]
[1725998860313,1.09702319,2382.6,2382.2,8.6075]
[1725998860511,1.09702319,2382.9,2382.3,0.3946]
[1725998860709,0.41968,2382.7,2382.3,0.3946]
[1725998860904,0.41966,2382.8,2382.3,0.81433]
[1725998861223,1.51668319,2382.8,2382.3,0.81433]
[1725998861514,1.51666319,2382.9,2382.3,0.81433]
[1725998861813,1.51666319,2382.9,2382.4,0.41972]
[1725998862114,0.41966,2382.8,2382.3,0.3946]
[1725998862408,1.51666319,2382.9,2382.3,0.81433]
[1725998862707,2.14615319,2382.8,2382.1,18.96287066]
[1725998862909,0.41972,2382.4,2382.1,17.88622098]
[1725998863113,0.41974,2382.3,2382.1,17.88622098]
[1725998863307,1.90326319,2382.3,2382.1,17.88622098]
[1725998863709,1.09702319,2382.2,2382.1,17.88622098]
[1725998865311,0.41975,2382.2,2382.1,17.88622098]
[1725998865518,1.51677319,2382.2,2382.1,17.88622098]
[1725998865911,5.71452493,2382.2,2382.1,17.88622098]
[1725998868717,1.51692493,2382.2,2382.1,17.88622098]
[1725998869518,5.71452493,2382.2,2382.1,17.88622098]
[1725998870325,4.61735,2382.2,2382.1,17.88622098]
[1725998870622,5.71467635,2382.2,2382.1,17.88622098]
[1725998872619,5.7146686,2382.2,2382.1,17.88622098]
[1725998873120,1.5170686,2382.2,2382.1,17.88622098]
[1725998873322,1.5170686,2382.2,2382.1,17.93162098]
[1725998873518,1.5170586,2382.3,2382.1,18.35138098]
[1725998873820,0.41974,2382.3,2382.1,18.35138098]
[1725998874119,0.41975,2382.2,2382.1,17.93162098]
[1725998874515,6.7640586,2382.2,2382.1,17.93162098]
[1725998874820,6.05224,2382.2,2382.1,17.93162098]
[1725998875127,2.95201717,2382.2,2382.1,17.93162098]
[1725998876111,7.14961717,2382.2,2382.1,17.93162098]
[1725998876321,2.95201717,2382.2,2382.1,17.93162098]
[1725998876625,7.14961717,2382.2,2382.1,17.93162098]
[1725998877015,6.05224,2382.2,2382.1,17.93162098]
[1725998877817,7.14950525,2382.2,2382.1,17.93162098]
[1725998878126,7.14952538,2382.2,2382.1,17.93162098]
[1725998878523,6.05224,2382.2,2382.1,17.93162098]
[1725998879525,16.38163,2382.2,2382.1,15.83179098]
[1725998879724,20.66235209,2382.2,2382.1,12.35470098]
[1725998879920,18.48042,2382.2,2382.1,10.53402098]
[1725998880121,18.48042,2382.2,2382.1,9.46468098]
[1725998880327,19.10904511,2382.2,2382.1,9.46468098]
[1725998880526,16.38163,2382.2,2382.1,9.46468098]
[1725998882021,7.10163,2382.2,2382.1,9.46468098]
[1725998882228,9.29637149,2382.2,2382.1,9.46468098]
[1725998883327,7.10163,2382.2,2382.1,9.46468098]
[1725998883521,9.29679355,2382.2,2382.1,9.46468098]
[1725998883921,5.66674,2382.2,2382.1,9.46468098]
[1725998884329,7.31334387,2382.2,2382.1,9.46468098]
[1725998884629,5.66674,2382.2,2382.1,9.46468098]
[1725998885919,1.46914,2382.2,2382.1,9.46468098]
[1725998886320,3.66430355,2382.2,2382.1,9.46468098]
[1725998886921,1.46914,2382.2,2382.1,9.46468098]
[1725998887117,8.91129355,2382.2,2382.1,0.0454]
[1725998888022,8.91129355,2382.2,2381.7,0.7437]
[1725998888023,15.99613,2382.2,2381.7,0.3643]
[1725998888224,2.51896,2381.8,2381.7,0.3643]
[1725998888422,0.41988,2381.5,2381.4,41.5554]
[1725998888722,3.11789381,2381.5,2381.4,1.35236242]
[1725998888926,1.46958,2381.5,2381.4,0.3844]
[1725998889119,3.66758028,2381.5,2381.4,0.3844]
[1725998889632,0.41988,2381.5,2381.4,0.3844]
[1725998891019,4.61908,2381.5,2381.4,0.3844]
[1725998892127,0.41988,2381.5,2381.4,0.3844]
[1725998893427,2.06643391,2381.5,2381.4,0.3844]
[1725998893634,0.41988,2381.5,2381.4,0.3844]
[1725998893834,2.0664378,2381.5,2381.4,0.3844]
[1725998894541,3.1161378,2381.5,2381.4,0.3844]
[1725998895341,2.0664378,2381.5,2381.4,0.3844]
[1725998896827,2.0664378,2381.5,2381.0,0.371]
[1725998896828,1.04979,2381.3,2381.0,0.371]
[1725998897135,1.04979,2381.3,2380.7,0.7989]
[1725998897136,0.42,2380.8,2380.7,0.7989]
[1725998897335,1.51723959,2380.8,2380.7,0.7989]
[1725998897529,0.42,2380.8,2380.7,0.7989]
[1725998898935,16.04724959,2380.8,2380.7,0.397]
[1725998899244,1.47026,2380.4,2380.3,0.3688]
[1725998899733,0.42007,2380.4,2380.3,0.3688]
[1725998901534,3.28,2380.7,2380.3,0.3688]
[1725998901737,0.42006,2380.5,2380.3,0.3688]
[1725998902637,0.42007,2380.5,2380.3,0.3688]
[1725998903239,1.05005,2380.7,2380.3,0.3688]
[1725998903539,1.05019,2380.4,2380.2,0.3809]
[1725998903738,0.42009,2380.3,2380.2,0.3809]
[1725998903943,1.47032,2380.3,2380.2,0.3809]
[1725998907934,0.42009,2380.3,2380.2,0.3809]
[1725998908139,1.05014,2380.5,2380.2,0.3809]
[1725998908346,0.42009,2380.3,2380.2,0.3809]
[1725998908744,0.42009,2380.3,2380.2,41.1809]
[1725998908943,1.05012,2380.6,2380.2,41.1809]
[1725998909150,0.42008,2380.4,2380.2,41.60101]
[1725998909535,1.05008,2380.7,2380.3,0.42009]
[1725998909536,0.42006,2380.5,2380.3,0.42009]
[1725998909739,0.42005,2380.6,2380.3,0.42009]
[1725998910051,0.42005,2380.5,2380.3,0.42009]
[1725998910640,0.42004,2380.6,2380.4,0.42006]
[1725998910937,0.42004,2380.6,2380.5,0.7899]
[1725998911345,0.42003,2380.7,2380.5,1.20995]
[1725998911546,1.05001,2380.8,2380.5,1.20995]
[1725998911747,0.42004,2380.6,2380.5,0.7899]
[1725998913750,0.42004,2380.6,2380.5,5.41075]
[1725998913949,0.42002,2380.7,2380.6,0.42003]
[1725998914451,0.42004,2380.6,2380.5,0.7899]
[1725998915049,0.42004,2380.6,2380.5,4.9907]
[1725998915946,0.42004,2380.6,2380.5,5.41075]
[1725998916643,0.42004,2380.6,2380.5,4.9907]
[1725998917043,0.42004,2380.6,2380.5,0.7899]
[1725998917652,0.42004,2380.6,2380.5,1.20995]
[1725998919241,4.102,2381.0,2380.5,10.9907]
[1725998919552,0.41999,2380.9,2380.8,0.41999]
[1725998919954,0.41999,2380.9,2380.8,4.61999]
[1725998920647,0.41998,2381.0,2380.9,0.41998]
[1725998920847,0.41996,2381.1,2381.0,0.41997]
[1725998921149,5.19848849,2381.4,2381.0,0.4024]
[1725998921150,0.41994,2381.2,2381.0,0.4024]
[1725998921346,0.41994,2381.2,2381.1,0.41995]
[1725998921547,5.19848849,2381.7,2381.4,0.41989]
[1725998921850,0.41987,2381.6,2381.5,0.7818]
[1725998923551,1.09648849,2382.0,2381.5,0.7818]
[1725998923750,0.41985,2381.7,2381.5,0.7818]
[1725998923946,0.41983,2381.8,2381.5,1.20167]
[1725998924149,1.09648849,2382.0,2381.7,0.41983]
[1725998924150,0.4198,2382.0,2381.7,0.41983]
[1725998924364,4.102,2382.2,2381.8,0.41982]
[1725998924653,0.41975,2382.2,2381.8,0.41982]
[1725998925052,1.09648849,2382.5,2381.8,4.04]
[1725998925255,0.41971,2382.5,2382.1,0.41976]
[1725998925449,0.41971,2382.5,2382.2,1.18805]
[1725998926048,0.41971,2382.5,2382.2,0.7683]
[1725998926250,0.41972,2382.4,2382.2,0.7683]
[1725998927054,0.41971,2382.5,2382.2,0.7683]
[1725998927255,0.41972,2382.4,2382.2,0.7683]
[1725998927849,4.102,2382.6,2382.2,0.7683]
[1725998928253,0.41973,2382.4,2382.2,0.7683]
[1725998928951,4.102,2382.6,2382.2,0.7683]
[1725998929156,0.41973,2382.4,2382.2,0.7683]
[1725998929355,0.4197,2382.5,2382.3,3.28]
[1725998929558,0.41969,2382.6,2382.3,3.28]
[1725998930253,0.4197,2382.5,2382.3,3.28]
[1725998931057,4.102,2383.0,2382.4,4.1976]
[1725998931260,4.102,2383.3,2382.8,3.28]
[1725998931559,0.41963,2383.0,2382.9,41.171]
[1725998931760,0.41963,2383.0,2382.9,41.5614]
[1725998932646,0.41963,2383.0,2382.9,41.171]
[1725998933153,0.41969,2382.6,2382.2,0.80795]
[1725998933458,0.2581,2382.9,2382.3,0.3847]
[1725998933658,0.41972,2382.5,2382.3,0.3847]
[1725998933960,0.41972,2382.4,2382.3,0.3847]
[1725998934256,0.41971,2382.5,2382.3,0.3847]
[1725998934650,0.41968,2382.7,2382.3,0.80443]
[1725998934853,0.2581,2382.9,2382.3,0.80443]
[1725998934854,0.41969,2382.6,2382.3,0.80443]
[1725998935159,4.102,2383.0,2382.3,3.6647]
[1725998935365,0.4197,2382.6,2382.3,3.6647]
[1725998935657,4.102,2383.0,2382.4,0.41971]
[1725998935658,0.41967,2382.7,2382.4,0.41971]
[1725998936857,0.41966,2382.8,2382.5,0.4197]
[1725998937059,0.41964,2382.9,2382.6,0.41968]
[1725998937258,0.41964,2382.9,2382.7,0.7659]
[1725998937563,0.41964,2382.9,2382.8,0.3787]
[1725998937758,1.30707,2383.2,2382.8,0.3787]
[1725998938459,0.41963,2382.9,2382.8,0.3787]
[1725998944256,4.1968,2382.9,2382.3,3.655]
[1725998944467,4.32906,2383.0,2382.4,0.3691]
[1725998944768,0.41968,2382.7,2382.5,0.4197]
[1725998945365,0.41967,2382.7,2382.6,0.41968]
[1725998945668,0.41967,2382.7,2382.5,0.41969]
[1725998946370,0.41968,2382.6,2382.5,0.41969]
[1725998946571,4.58709,2383.2,2382.4,0.3691]
[1725998946572,0.4197,2382.5,2382.4,0.3691]
[1725998948456,1.04918,2382.7,2382.4,0.3691]
[1725998948661,0.2581,2382.9,2382.5,0.41969]
[1725998948662,1.04911,2382.9,2382.5,0.41969]
[1725998949568,0.41968,2382.6,2382.5,0.41969]
[1725998950760,1.04914,2382.8,2382.6,0.41968]
[1725998950761,0.41968,2382.7,2382.6,0.41968]
[1725998951266,0.41968,2382.7,2382.6,4.61648]
[1725998951267,0.41967,2382.7,2382.6,4.61648]
[1725998951474,0.41966,2382.8,2382.7,0.41966]
[1725998951668,0.41966,2382.8,2382.7,0.3871]
[1725998952168,1.46879,2382.8,2382.7,0.3871]
[1725998952368,0.4197,2382.5,2382.4,0.3691]
[1725998952983,0.4197,2382.6,2382.5,0.4197]
[1725998954167,0.4197,2382.5,2382.4,0.78881]
[1725998954473,0.4197,2382.5,2382.4,0.3691]
[1725998954770,1.46896,2382.5,2382.4,0.3691]
[1725998956465,0.4197,2382.5,2382.4,0.3691]
[1725998957271,0.4197,2382.5,2382.4,0.78882]
[1725998957782,0.4197,2382.5,2382.4,0.3691]
[1725998960073,0.4197,2382.5,2382.4,0.78882]
[1725998960378,0.4197,2382.5,2382.4,0.3691]
[1725998960580,1.46896,2382.5,2382.4,0.3691]
[1725998960969,1.46896,2382.5,2381.9,3.28]
[1725998960970,0.41974,2382.3,2381.9,3.28]
[1725998961169,0.41979,2382.1,2382.0,0.3715]
[1725998962173,0.41979,2382.1,2382.0,0.79129]
[1725998962681,0.41979,2382.1,2382.0,41.59129]
[1725998962868,0.41979,2382.1,2382.0,41.1715]
[1725998963176,0.41977,2382.2,2382.0,41.59128]
[1725998963378,0.41977,2382.1,2382.0,41.59128]
[1725998964269,0.41977,2382.1,2382.0,41.1715]
[1725998964874,1.46921,2382.1,2382.0,41.1715]
[1725998965377,0.41977,2382.1,2382.0,41.1715]
[1725998965970,0.41981,2381.9,2381.8,0.3831]
[1725998966372,1.51629849,2381.9,2381.8,41.1831]
[1725998967073,0.41981,2381.9,2381.8,41.1831]
[1725998967269,0.41981,2381.9,2381.8,41.60292]
[1725998967883,0.41981,2381.9,2381.8,41.1831]
[1725998968181,1.51628849,2382.0,2381.8,41.77432318]
[1725998968377,0.4198,2382.0,2381.8,41.60291]
[1725998968880,0.41981,2381.9,2381.8,41.60291]
[1725998969181,0.41981,2381.9,2381.8,42.19408173]